bitfinex-derivatives/quotes_BTCF0:USTF0_20250930
["timestamp","ask_amount","ask_price","bid_price","bid_amount"]
[1759221259792,1.5927218,113450.0,113440.0,0.03535]
[1759221260089,1.5927218,113450.0,113440.0,0.01327]
[1759221260289,1.17832,113450.0,113440.0,0.03535]
[1759221260588,1.5050309,113450.0,113440.0,0.03535]
[1759221260884,1.5052309,113450.0,113440.0,0.03535]
[1759221261081,0.7835616,113450.0,113440.0,0.03735]
[1759221261288,1.5133509,113450.0,113440.0,0.03735]
[1759221261590,1.5934416,113450.0,113440.0,0.03535]
[1759221262293,1.59422017,113450.0,113440.0,0.03535]
[1759221262484,1.59422017,113450.0,113430.0,0.03602]
[1759221262793,0.3608,113440.0,113430.0,0.03602]
[1759221262991,0.8234,113440.0,113430.0,0.36306947]
[1759221263284,1.15084947,113440.0,113430.0,0.36346947]
[1759221263478,1.15084947,113440.0,113430.0,0.45157567]
[1759221263892,1.15084947,113440.0,113430.0,0.45357567]
[1759221264091,1.15084947,113440.0,113430.0,0.45657567]
[1759221264285,0.4808907,113450.0,113440.0,0.01327]
[1759221264485,1.53276947,113450.0,113440.0,0.03535]
[1759221264794,1.53320947,113450.0,113440.0,0.36279947]
[1759221264984,1.51220947,113450.0,113440.0,0.36279947]
[1759221265185,0.4488905,113450.0,113440.0,0.03535]
[1759221265384,0.3608,113450.0,113440.0,0.36279947]
[1759221265584,1.51224947,113450.0,113440.0,0.36279947]
[1759221265780,1.51224947,113450.0,113440.0,0.03535]
[1759221265781,1.60033997,113450.0,113440.0,0.03535]
[1759221265988,1.61233997,113450.0,113440.0,0.03735]
[1759221266290,0.78833997,113450.0,113440.0,0.03735]
[1759221266487,1.61229997,113450.0,113440.0,0.03735]
[1759221267386,1.60029997,113450.0,113440.0,0.03535]
[1759221267581,1.62429997,113450.0,113440.0,0.03835]
[1759221267792,0.80033997,113450.0,113440.0,0.03835]
[1759221267989,0.80033997,113450.0,113440.0,0.36579947]
[1759221268293,1.62385997,113450.0,113440.0,0.36579947]
[1759221268488,0.71224947,113450.0,113440.0,0.36579947]
[1759221268691,1.53568947,113450.0,113440.0,0.45389777]
[1759221268883,0.02404,113450.0,113440.0,1.18134724]
[1759221269087,0.02404,113450.0,113440.0,1.86959671]
[1759221269286,0.06886175,113470.0,113460.0,0.1234327]
[1759221269580,0.3608,113480.0,113470.0,0.123425]
[1759221269786,1.51216947,113480.0,113470.0,0.45087447]
[1759221270093,0.68824947,113480.0,113470.0,0.85087447]
[1759221270893,0.3608,113480.0,113470.0,0.85087447]
[1759221271190,0.68824947,113490.0,113480.0,0.1234174]
[1759221271496,0.3608,113490.0,113480.0,0.45086687]
[1759221271693,0.46475046,113510.0,113490.0,0.1234096]
[1759221271895,0.55279506,113510.0,113500.0,0.36279947]
[1759221272190,1.59552268,113510.0,113500.0,0.45085127]
[1759221272388,0.08319321,113510.0,113500.0,0.77830074]
[1759221272787,0.90727321,113510.0,113500.0,0.43535]
[1759221272993,1.32276678,113510.0,113500.0,0.03535]
[1759221273294,1.68356678,113510.0,113500.0,0.01327]
[1759221273492,1.70356678,113510.0,113500.0,0.01427]
[1759221273796,2.43101625,113510.0,113500.0,0.0014]
[1759221273991,2.43101625,113510.0,113500.0,0.001]
[1759221274289,0.088059,113490.0,113480.0,0.36359947]
[1759221274490,0.088059,113490.0,113480.0,0.77911564]
[1759221274491,0.82416,113490.0,113480.0,0.77911564]
[1759221274688,0.9281948,113510.0,113500.0,0.03535]
[1759221274895,1.77235901,113510.0,113500.0,0.03535]
[1759221275990,1.75165449,113510.0,113500.0,0.01327]
[1759221276297,0.0880519,113500.0,113490.0,0.36279947]
[1759221276799,1.60034137,113500.0,113490.0,0.36279947]
[1759221277197,1.60034137,113500.0,113490.0,0.03535]
[1759221277398,1.60034137,113500.0,113490.0,0.36279947]
[1759221277798,1.63334137,113500.0,113490.0,0.36479947]
[1759221278099,1.3058919,113500.0,113490.0,0.03735]
[1759221278295,1.63334137,113500.0,113490.0,0.36479947]
[1759221278498,1.63334137,113500.0,113490.0,0.03735]
[1759221278694,1.96079084,113500.0,113490.0,0.03735]
[1759221278894,1.63334137,113500.0,113490.0,0.03735]
[1759221279102,1.63334137,113500.0,113490.0,0.36479947]
[1759221279299,1.63334137,113500.0,113490.0,0.03735]
[1759221279499,1.61534137,113500.0,113490.0,0.36379947]
[1759221279893,1.2878919,113500.0,113490.0,0.36379947]
[1759221280095,1.61534137,113500.0,113490.0,0.36379947]
[1759221280295,1.61534137,113500.0,113490.0,0.45185907]
[1759221281197,1.54741984,113500.0,113490.0,0.45185907]
[1759221281398,1.21997037,113500.0,113490.0,0.45185907]
[1759221281788,1.54741984,113500.0,113490.0,0.45185907]
[1759221282094,0.72337984,113500.0,113490.0,0.45185907]
[1759221282302,1.63503174,113500.0,113490.0,0.03635]
[1759221282600,1.30758227,113500.0,113490.0,0.36379947]
[1759221282799,1.27423174,113500.0,113490.0,0.36379947]
[1759221283194,0.12318227,113500.0,113490.0,0.36379947]
[1759221283390,0.03513037,113500.0,113490.0,0.85185907]
[1759221283588,0.015,113500.0,113490.0,1.88518814]
[1759221283788,0.00037,113510.0,113500.0,0.0880519]
[1759221283991,0.4488216,113540.0,113530.0,0.03535]
[1759221284295,1.33640875,113540.0,113530.0,0.01327]
[1759221284494,0.68150981,113540.0,113530.0,0.01327]
[1759221284696,1.33640875,113540.0,113530.0,0.01327]
[1759221285200,0.68150981,113540.0,113530.0,0.03535]
[1759221285401,1.33640875,113540.0,113530.0,0.03535]
[1759221285700,1.62207928,113540.0,113530.0,0.36279947]
[1759221285901,1.63278927,113540.0,113530.0,0.36279947]
[1759221286201,1.3054998,113540.0,113530.0,0.03535]
[1759221286595,1.3094998,113540.0,113530.0,0.03535]
[1759221287202,1.3094198,113540.0,113530.0,0.03535]
[1759221287401,0.3958782,113540.0,113530.0,0.1233786]
[1759221287591,1.2170782,113540.0,113530.0,0.1233786]
[1759221287796,1.2240782,113540.0,113530.0,0.53199729]
[1759221288302,1.2240782,113540.0,113530.0,0.1233786]
[1759221288503,1.29624888,113540.0,113530.0,0.1233786]
[1759221289002,1.38426978,113540.0,113530.0,0.1233786]
[1759221289300,1.36390157,113540.0,113530.0,0.1233786]
[1759221289499,0.53870157,113540.0,113530.0,0.1233786]
[1759221289701,1.36390157,113540.0,113530.0,0.1233786]
[1759221289901,1.36366157,113540.0,113530.0,0.1233786]
[1759221290302,1.00286157,113540.0,113530.0,0.53199729]
[1759221291293,1.02317819,113540.0,113530.0,0.53199729]
[1759221292100,0.93487729,113540.0,113530.0,1.29279729]
[1759221292901,0.11019729,113540.0,113530.0,1.29279729]
[1759221293106,0.0994873,113540.0,113530.0,1.29279729]
[1759221293902,0.3608,113560.0,113550.0,0.1010531]
[1759221294205,0.02032244,113560.0,113550.0,0.53234179]
[1759221294503,0.02032244,113560.0,113550.0,0.93234179]
[1759221294900,0.02032244,113560.0,113550.0,1.29314179]
[1759221295100,0.03832244,113560.0,113550.0,1.29314179]
[1759221295305,0.018,113560.0,113550.0,1.29314179]
[1759221296207,0.44249843,113570.0,113560.0,0.1237154]
[1759221296409,0.46282591,113570.0,113560.0,0.53233409]
[1759221296611,0.38112748,113570.0,113560.0,0.53233409]
[1759221296804,0.02032748,113570.0,113560.0,0.89313409]
[1759221297412,0.02032748,113570.0,113560.0,0.89813409]
[1759221298408,0.02032748,113570.0,113560.0,0.90413409]
[1759221299306,0.02032748,113570.0,113560.0,1.71275278]
[1759221299510,0.07073751,113580.0,113570.0,0.0879976]
[1759221299700,0.02033494,113580.0,113570.0,0.53232629]
[1759221299901,0.10832484,113580.0,113570.0,0.1237076]
[1759221300211,0.17964659,113580.0,113570.0,0.03571]
[1759221300512,0.17964659,113580.0,113570.0,0.03611]
[1759221300704,0.17964659,113580.0,113570.0,0.53272629]
[1759221301104,0.09465669,113580.0,113570.0,0.53272629]
[1759221301405,0.07132175,113580.0,113570.0,0.93272629]
[1759221301599,0.016,113580.0,113570.0,1.29352629]
[1759221302404,0.97425417,113600.0,113590.0,0.1236921]
[1759221302609,0.61318098,113600.0,113590.0,0.53231079]
[1759221302906,0.57664661,113600.0,113590.0,0.89311079]
[1759221303206,4e-05,113600.0,113590.0,2.11759079]
[1759221303406,4e-05,113600.0,113590.0,1.29311079]
[1759221303712,4e-05,113600.0,113590.0,2.11959079]
[1759221304208,4e-05,113600.0,113590.0,2.11759079]
[1759221304410,0.01204,113600.0,113590.0,1.29311079]
[1759221304611,0.01204,113600.0,113590.0,2.11759079]
[1759221305612,0.01204,113600.0,113590.0,1.29311079]
[1759221305807,0.01204,113600.0,113590.0,2.11755079]
[1759221306008,0.01204,113600.0,113590.0,2.11771079]
[1759221306198,0.01069384,113620.0,113610.0,0.1236767]
[1759221306403,1.34263995,113630.0,113610.0,0.53229539]
[1759221306604,1.37951657,113630.0,113620.0,0.44432869]
[1759221306899,0.45758306,113630.0,113620.0,0.53228759]
[1759221307108,0.08018306,113630.0,113620.0,0.53228759]
[1759221307398,0.86172085,113640.0,113630.0,0.1236612]
[1759221307607,0.03716085,113640.0,113630.0,0.53227989]
[1759221307808,0.0166,113640.0,113630.0,0.53227989]
[1759221308609,0.36084,113650.0,113640.0,0.1236534]
[1759221308818,0.01066519,113650.0,113640.0,0.53227209]
[1759221309113,4e-05,113650.0,113640.0,0.53227209]
[1759221309416,4e-05,113650.0,113640.0,0.89307209]
[1759221310410,0.01664,113650.0,113640.0,0.89307209]
[1759221310816,0.01964,113650.0,113640.0,1.71811209]
[1759221311513,0.01964,113650.0,113640.0,1.71819209]
[1759221311818,0.02064,113650.0,113640.0,1.71819209]
[1759221312016,0.00404,113650.0,113640.0,1.71819209]
[1759221313711,0.00404,113650.0,113640.0,1.71787209]
[1759221313912,0.00404,113650.0,113640.0,0.89307209]
[1759221314207,0.07339044,113650.0,113640.0,1.71795209]
[1759221314814,0.07339044,113650.0,113640.0,0.89307209]
[1759221315013,0.07339044,113650.0,113640.0,1.71795209]
[1759221315308,0.08999044,113650.0,113640.0,1.71795209]
[1759221315512,0.08999044,113650.0,113640.0,0.03611]
[1759221315513,1.34734483,113650.0,113640.0,0.03611]
[1759221315715,0.93872614,113650.0,113640.0,0.03611]
[1759221315922,1.34734483,113650.0,113640.0,0.0004]
[1759221316220,1.35772483,113650.0,113640.0,0.0004]
[1759221316421,0.0166,113640.0,113630.0,0.53114989]
[1759221316617,0.0166,113640.0,113630.0,0.44319869]
[1759221317114,0.0166,113640.0,113630.0,0.44359869]
[1759221317315,0.1045434,113640.0,113630.0,0.44359869]
[1759221317818,1.6915434,113640.0,113630.0,0.02194]
[1759221318023,2.10016209,113640.0,113630.0,0.001]
[1759221318320,1.71181354,113640.0,113630.0,0.0014]
[1759221318924,2.12043223,113640.0,113630.0,0.0014]
[1759221319418,2.12043223,113640.0,113630.0,0.0004]
[1759221319616,2.12043223,113640.0,113630.0,0.0014]
[1759221321023,1.71277354,113640.0,113630.0,0.01511]
[1759221322023,0.88561354,113640.0,113630.0,0.01511]
[1759221322325,2.12151223,113640.0,113630.0,0.0014]
[1759221323024,0.88561354,113640.0,113630.0,0.03629]
[1759221323224,1.71285354,113640.0,113630.0,0.03629]
[1759221323726,1.71285354,113640.0,113630.0,0.01511]
[1759221325027,0.88561354,113640.0,113630.0,0.01511]
[1759221325526,1.71309354,113640.0,113630.0,0.01511]
[1759221326921,1.71309354,113640.0,113630.0,0.0014]
[1759221327431,0.91719186,113640.0,113630.0,0.01511]
[1759221327619,1.74459186,113640.0,113630.0,0.01511]
[1759221327928,0.91719186,113640.0,113630.0,0.0014]
[1759221328223,1.71273354,113640.0,113630.0,0.03629]
[1759221328726,1.71261354,113640.0,113630.0,0.03629]
[1759221328926,1.71265354,113640.0,113630.0,0.03629]
[1759221329127,1.71257354,113640.0,113630.0,0.03629]
[1759221329430,0.48561354,113640.0,113630.0,0.47878779]
[1759221329624,1.22467014,113640.0,113630.0,0.47878779]
[1759221329827,0.39767014,113640.0,113630.0,0.47878779]
[1759221330020,0.02027014,113640.0,113630.0,0.87878779]
[1759221331233,0.11952172,113640.0,113630.0,0.87878779]
[1759221331528,0.13979186,113640.0,113630.0,0.87878779]
[1759221332725,0.05184846,113640.0,113630.0,0.87878779]
[1759221333123,0.03157832,113640.0,113630.0,0.87878779]
[1759221333423,0.03151293,113640.0,113630.0,1.23958779]
[1759221333628,0.13972647,113640.0,113630.0,1.23958779]
[1759221334931,0.05178307,113640.0,113630.0,1.23958779]
[1759221335525,0.03151293,113640.0,113630.0,1.23958779]
[1759221336020,0.05178307,113640.0,113630.0,1.23958779]
[1759221336228,0.03151293,113640.0,113630.0,1.23958779]
[1759221336529,0.05178307,113640.0,113630.0,1.23958779]
[1759221336730,0.03151293,113640.0,113630.0,1.23958779]
[1759221336928,0.05178307,113640.0,113630.0,1.23958779]
[1759221337433,0.03151293,113640.0,113630.0,1.23958779]
[1759221337627,0.05178307,113640.0,113630.0,1.23958779]
[1759221337934,0.03151293,113640.0,113630.0,1.23958779]
[1759221338235,0.02027014,113640.0,113630.0,1.23958779]
[1759221338426,1.10016205,113650.0,113640.0,0.1228333]
[1759221338618,0.22588545,113650.0,113640.0,0.47737999]
[1759221338821,0.12134515,113650.0,113640.0,0.47737999]
[1759221339733,0.12734515,113650.0,113640.0,0.47737999]
[1759221341222,0.09583222,113650.0,113640.0,0.83817999]
[1759221342027,0.18376792,113650.0,113640.0,0.83817999]
[1759221342228,0.18376792,113650.0,113640.0,0.4836333]
[1759221342440,0.18376792,113650.0,113640.0,0.83817999]
[1759221345232,0.09583222,113650.0,113640.0,0.83817999]
[1759221346141,0.18376782,113650.0,113640.0,0.83817999]
[1759221346436,0.18376782,113650.0,113640.0,1.13595186]
[1759221349136,0.09583222,113650.0,113640.0,1.13595186]
[1759221349842,0.18376732,113650.0,113640.0,1.13595186]
[1759221350340,0.18376732,113650.0,113640.0,1.96103186]
[1759221350939,0.18376732,113650.0,113640.0,1.13595186]
[1759221352039,0.09583222,113650.0,113640.0,1.13595186]
[1759221352938,0.07539044,113650.0,113640.0,1.53595186]
[1759221353137,0.16332614,113650.0,113640.0,1.53595186]
[1759221353340,0.16332614,113650.0,113640.0,2.27296856]
[1759221353638,0.16332614,113650.0,113640.0,2.36091196]
[1759221353940,0.16332614,113650.0,113640.0,1.53595196]
[1759221354241,0.16332614,113650.0,113640.0,2.36147196]
[1759221355042,0.16332614,113650.0,113640.0,2.36163196]
[1759221356041,0.07539044,113650.0,113640.0,2.36163196]
[1759221358444,0.0958282,113650.0,113640.0,1.53595196]
[1759221358644,0.0958282,113650.0,113640.0,2.36147196]
[1759221359246,0.0958282,113650.0,113640.0,2.40890192]
[1759221360748,0.0958282,113650.0,113640.0,1.58338192]
[1759221360944,0.0958282,113650.0,113640.0,2.40870192]
[1759221361245,0.07539044,113650.0,113640.0,2.40870192]
[1759221361840,0.07539044,113650.0,113640.0,1.58338192]
[1759221362344,0.07539044,113650.0,113640.0,2.40854192]
[1759221363249,0.00539044,113650.0,113640.0,1.58338192]
[1759221363449,0.09332614,113650.0,113640.0,1.58338192]
[1759221363649,0.09332614,113650.0,113640.0,2.40862192]
[1759221364042,0.09332614,113650.0,113640.0,1.58338192]
[1759221364242,0.09332614,113650.0,113640.0,2.40882192]
[1759221364450,0.00539044,113650.0,113640.0,2.40882192]
[1759221364863,0.07601404,113650.0,113640.0,2.40882192]
[1759221366148,0.4623941,113680.0,113670.0,0.01378]
[1759221366149,0.37448,113680.0,113670.0,0.01378]
[1759221366352,0.02044318,113680.0,113670.0,0.77701876]
[1759221366647,0.02208,113690.0,113680.0,0.1246162]
[1759221366854,0.04252382,113690.0,113680.0,1.27669548]
[1759221367153,0.04252382,113690.0,113680.0,1.18878928]
[1759221367554,0.13042852,113690.0,113680.0,1.54958928]
[1759221367851,0.50132463,113690.0,113680.0,0.36286928]
[1759221368252,0.15052463,113690.0,113680.0,0.36286928]
[1759221368447,0.22044138,113690.0,113680.0,1.18898928]
[1759221368645,0.21044138,113690.0,113680.0,1.18898928]
[1759221369448,0.21044138,113690.0,113680.0,1.18910928]
[1759221369848,0.21244138,113690.0,113680.0,0.36286928]
[1759221370048,0.21244138,113690.0,113680.0,1.18910928]
[1759221370448,0.21244138,113690.0,113680.0,1.18902928]
[1759221370650,0.19199756,113690.0,113680.0,1.18902928]
[1759221370851,0.21240816,113690.0,113680.0,0.36286928]
[1759221371047,0.21240816,113690.0,113680.0,1.18894928]
[1759221371252,0.22608816,113690.0,113680.0,1.18894928]
[1759221371556,0.22608816,113690.0,113680.0,0.36286928]
[1759221371756,0.22608816,113690.0,113680.0,1.18886928]
[1759221372556,0.98688816,113690.0,113680.0,0.023]
[1759221372762,0.98688816,113690.0,113680.0,0.34915928]
[1759221372956,0.98688816,113690.0,113680.0,0.34955928]
[1759221373157,0.53818346,113690.0,113680.0,0.43747178]
[1759221373355,0.12450346,113690.0,113680.0,0.45125178]
[1759221374455,0.12450346,113690.0,113680.0,0.81205178]
[1759221376359,0.21240816,113690.0,113680.0,0.81205178]
[1759221376558,0.21240816,113690.0,113680.0,1.63869178]
[1759221377562,0.12450346,113690.0,113680.0,1.63869178]
[1759221382165,0.09232735,113690.0,113680.0,1.63869178]
[1759221382363,0.09232735,113690.0,113680.0,1.65949591]
[1759221382562,0.18023145,113690.0,113680.0,0.83285591]
[1759221382758,0.18023145,113690.0,113680.0,1.65861591]
[1759221382964,0.20165145,113690.0,113680.0,1.29789531]
[1759221383272,0.20165145,113690.0,113680.0,1.57078341]
[1759221383569,0.20165145,113690.0,113680.0,1.65869531]
[1759221383767,0.20165145,113690.0,113680.0,0.83285531]
[1759221383967,0.18023145,113690.0,113680.0,1.65881531]
[1759221384273,0.10241374,113690.0,113680.0,1.65869531]
[1759221385170,0.09232735,113690.0,113680.0,0.83285531]
[1759221385372,0.20165205,113690.0,113680.0,1.65897531]
[1759221385671,0.20165205,113690.0,113680.0,1.29817531]
[1759221386370,0.20165205,113690.0,113680.0,1.62389299]
[1759221386569,0.21196848,113690.0,113680.0,1.62389299]
[1759221387173,0.21196848,113690.0,113680.0,1.94983147]
[1759221388273,0.12406378,113690.0,113680.0,2.31063147]
[1759221388467,0.19054848,113690.0,113680.0,2.31063147]
[1759221389074,0.19054848,113690.0,113680.0,1.48451147]
[1759221389271,0.19054848,113690.0,113680.0,2.31031147]
[1759221391975,0.19054848,113690.0,113680.0,1.48451147]
[1759221392173,0.19054848,113690.0,113680.0,2.30983147]
[1759221392872,0.22487848,113690.0,113680.0,0.95711603]
[1759221393072,0.22487848,113690.0,113680.0,1.60899299]
[1759221393472,0.22487848,113690.0,113680.0,1.60859299]
[1759221393673,0.22487848,113690.0,113680.0,1.62215299]
[1759221393980,0.21196848,113690.0,113680.0,1.98295299]
[1759221398484,0.21197737,113690.0,113680.0,1.98295299]
[1759221400391,0.22488737,113690.0,113680.0,1.96811299]
[1759221400790,0.22288737,113690.0,113680.0,1.96811299]
[1759221400988,0.22288737,113690.0,113680.0,1.95390886]
[1759221401288,0.22289016,113690.0,113680.0,1.95390886]
[1759221401688,0.22289016,113690.0,113680.0,1.95590886]
[1759221402884,0.22289016,113690.0,113680.0,1.96906886]
[1759221403085,0.20998016,113690.0,113680.0,1.96906886]
[1759221403488,0.22289016,113690.0,113680.0,1.96906886]
[1759221403791,0.22289016,113690.0,113680.0,1.13298886]
[1759221403991,0.22289016,113690.0,113680.0,0.68427696]
[1759221404189,0.22289016,113690.0,113680.0,1.50643696]
[1759221404392,0.22289016,113690.0,113680.0,1.59434896]
[1759221405694,0.22289016,113690.0,113680.0,0.77218896]
[1759221405886,0.20998016,113690.0,113680.0,1.14614896]
[1759221406786,0.10065546,113690.0,113680.0,1.14614896]
[1759221407093,0.18855976,113690.0,113680.0,1.14614896]
[1759221407496,0.10065546,113690.0,113680.0,1.14614896]
[1759221407690,0.10065546,113690.0,113680.0,1.19357892]
[1759221407885,0.18855976,113690.0,113680.0,1.19357892]
[1759221409995,0.10065546,113690.0,113680.0,1.19357892]
[1759221413490,0.18855976,113690.0,113680.0,2.01453892]
[1759221413690,0.18855976,113690.0,113680.0,1.19357892]
[1759221413885,0.22365976,113690.0,113680.0,0.83277892]
[1759221414190,0.22365976,113690.0,113680.0,1.65433892]
[1759221414696,0.22365976,113690.0,113680.0,0.83277892]
[1759221414897,0.22365976,113690.0,113680.0,0.81961892]
[1759221415099,0.21079976,113690.0,113680.0,0.83287892]
[1759221415398,0.21079976,113690.0,113680.0,0.83327892]
[1759221415702,0.12289546,113690.0,113680.0,1.19407892]
[1759221416600,0.21079976,113690.0,113680.0,1.19407892]
[1759221417898,1.22448915,113710.0,113690.0,0.1244033]
[1759221418105,0.93119067,113710.0,113700.0,0.70957848]
[1759221419091,1.01908697,113710.0,113700.0,0.38364]
[1759221419299,1.34502545,113710.0,113700.0,0.70957848]
[1759221419496,1.34502545,113710.0,113700.0,0.38364]
[1759221419497,1.34426545,113710.0,113700.0,0.38364]
[1759221419798,1.41341771,113710.0,113700.0,0.38364]
[1759221420000,1.42755166,113710.0,113700.0,0.38364]
[1759221420200,1.42755166,113710.0,113700.0,0.3608]
[1759221421396,0.0879048,113690.0,113680.0,0.3977]
[1759221421600,1.28714845,113690.0,113680.0,0.34877848]
[1759221421796,1.28714845,113690.0,113680.0,0.34917848]
[1759221421996,0.96120997,113690.0,113680.0,0.34877848]
[1759221422301,0.96112997,113690.0,113680.0,0.72363848]
[1759221422497,0.94826997,113690.0,113680.0,1.04957696]
[1759221422798,1.27412845,113690.0,113680.0,0.0459]
[1759221423101,1.28698845,113690.0,113680.0,0.0459]
[1759221423299,1.28698845,113690.0,113680.0,0.37183848]
[1759221424797,1.26950328,113690.0,113680.0,0.35817848]
[1759221426801,2.35624176,113690.0,113680.0,1e-07]
[1759221427005,0.1230279,113660.0,113650.0,0.70957848]
[1759221427197,0.0351,113660.0,113650.0,0.72323848]
[1759221427400,0.8557,113660.0,113650.0,1.04917696]
[1759221427697,0.85566,113660.0,113650.0,1.13711266]
[1759221427898,0.9271496,113660.0,113650.0,1.13751266]
[1759221428498,0.9271496,113660.0,113650.0,0.81657418]
[1759221428699,0.9271496,113660.0,113650.0,0.83157418]
[1759221429195,0.9281896,113660.0,113650.0,0.83157418]
[1759221429396,0.1065896,113660.0,113650.0,0.83157418]
[1759221429601,0.9281896,113660.0,113650.0,0.83157418]
[1759221429999,0.9281896,113660.0,113650.0,0.5056357]
[1759221430000,0.9480977,113660.0,113650.0,0.5056357]
[1759221430308,0.9480977,113660.0,113650.0,0.83157418]
[1759221430500,0.1264977,113660.0,113650.0,0.83157418]
[1759221430696,0.9353577,113660.0,113650.0,0.83157418]
[1759221430894,0.9375977,113660.0,113650.0,1.15751266]
[1759221431105,0.9176896,113660.0,113650.0,1.15751266]
[1759221431308,1.02551729,113660.0,113650.0,1.15751266]
[1759221431602,0.20155729,113660.0,113650.0,1.06957696]
[1759221431795,1.02571729,113660.0,113650.0,1.06957696]
[1759221432502,1.03857729,113660.0,113650.0,0.72997848]
[1759221432708,2.45125425,113660.0,113650.0,1e-07]
[1759221433208,2.45125425,113660.0,113650.0,0.0004001]
[1759221433403,0.1230433,113640.0,113630.0,0.0008]
[1759221433600,0.123051,113630.0,113620.0,0.70957848]
[1759221433800,0.96687119,113630.0,113620.0,1.03551696]
[1759221434205,0.946971,113630.0,113620.0,0.3973]
[1759221434407,0.96668796,113630.0,113620.0,1.04917696]
[1759221434704,0.14276796,113630.0,113620.0,1.13713586]
[1759221434909,0.96656796,113630.0,113620.0,1.13713586]
[1759221435209,0.123051,113630.0,113620.0,1.13713586]
[1759221435413,0.946771,113630.0,113620.0,1.13713586]
[1759221435711,1.27270948,113630.0,113620.0,0.72323848]
[1759221436012,0.44898948,113630.0,113620.0,0.72323848]
[1759221436211,1.27242948,113630.0,113620.0,0.72323848]
[1759221436412,0.46198948,113630.0,113620.0,0.3973]
[1759221436615,1.28542948,113630.0,113620.0,0.72323848]
[1759221437405,1.28554948,113630.0,113620.0,0.72323848]
[1759221438211,1.28542948,113630.0,113620.0,0.72323848]
[1759221438414,0.46198948,113630.0,113620.0,0.72323848]
[1759221438711,1.28542948,113630.0,113620.0,0.72323848]
[1759221438915,0.136051,113630.0,113620.0,0.81119678]
[1759221439105,0.136051,113630.0,113620.0,0.72323848]
[1759221439306,1.26110948,113630.0,113620.0,1.04917696]
[1759221440208,1.27116475,113630.0,113620.0,1.04917696]
[1759221440412,0.47204475,113630.0,113620.0,0.3973]
[1759221440610,1.29520475,113630.0,113620.0,1.13713586]
[1759221441115,0.47204475,113630.0,113620.0,1.13713586]
[1759221441315,1.29472475,113630.0,113620.0,1.13713586]
[1759221441516,0.14610627,113630.0,113620.0,1.13713586]
[1759221441815,0.47204475,113630.0,113620.0,1.13713586]
[1759221442015,1.29464475,113630.0,113620.0,1.13713586]
[1759221442612,0.13324627,113630.0,113620.0,1.13713586]
[1759221442812,0.95580627,113630.0,113620.0,1.13713586]
[1759221443219,0.13324627,113630.0,113620.0,1.13713586]
[1759221443515,0.95556627,113630.0,113620.0,1.13713586]
[1759221444318,0.96876627,113630.0,113620.0,0.4852589]
[1759221444511,0.96864627,113630.0,113620.0,0.81119738]
[1759221444711,1.29458475,113630.0,113620.0,0.70957848]
[1759221444911,1.29458475,113630.0,113620.0,0.38364]
[1759221445211,1.29458475,113630.0,113620.0,0.70957848]
[1759221446209,1.29458475,113630.0,113620.0,0.79753738]
[1759221446516,1.29458475,113630.0,113620.0,1.12347586]
[1759221447817,0.47238475,113630.0,113620.0,1.12347586]
[1759221448015,1.29438475,113630.0,113620.0,1.13711586]
[1759221448214,0.96844627,113630.0,113620.0,0.81158901]
[1759221449419,0.14644627,113630.0,113620.0,0.81158901]
[1759221449618,0.96824627,113630.0,113620.0,0.81158901]
[1759221449814,0.14644627,113630.0,113620.0,0.81158901]
[1759221450015,0.96788627,113630.0,113620.0,0.81158901]
[1759221450518,0.04529527,113630.0,113620.0,0.81158901]
[1759221450715,0.86673527,113630.0,113620.0,0.81158901]
[1759221450920,0.95468577,113630.0,113620.0,0.81158901]
[1759221451419,0.14644577,113630.0,113620.0,0.70999011]
[1759221451810,0.14644577,113630.0,113620.0,0.81158861]
[1759221451811,0.13324577,113630.0,113620.0,0.81158861]
[1759221452007,0.95444577,113630.0,113620.0,0.81158861]
[1759221452216,0.95444577,113630.0,113620.0,0.72363011]
[1759221456217,0.95404577,113630.0,113620.0,0.72363011]
[1759221456516,1.31335745,113630.0,113620.0,0.38364]
[1759221456720,1.31335745,113630.0,113620.0,0.38404]
[1759221457408,0.98700734,113630.0,113620.0,0.38404]
[1759221457814,0.98700734,113630.0,113620.0,0.71039011]
[1759221458112,0.98700734,113630.0,113620.0,0.79834901]
[1759221458322,0.98700734,113630.0,113620.0,0.34959011]
[1759221459024,0.98700734,113630.0,113620.0,0.43754891]
[1759221461319,0.16620734,113630.0,113620.0,0.43754891]
[1759221461617,0.07825684,113630.0,113620.0,0.45118891]
[1759221461814,0.88477684,113630.0,113620.0,0.81198891]
[1759221462724,0.88493684,113630.0,113620.0,0.81198891]
[1759221463020,0.97288804,113630.0,113620.0,0.72403011]
[1759221463712,1.67323815,113630.0,113620.0,0.02324]
[1759221463919,2.09115829,113630.0,113620.0,0.0004]
[1759221464119,0.0132,113610.0,113600.0,0.06885996]
[1759221464321,1.26838774,113610.0,113600.0,0.06885996]
[1759221464514,0.0879744,113600.0,113590.0,0.42188996]
[1759221464719,0.0879744,113600.0,113590.0,0.38223]
[1759221464720,0.46979101,113600.0,113590.0,0.38223]
[1759221464915,0.46979101,113600.0,113590.0,0.38263]
[1759221465524,0.46979101,113600.0,113590.0,0.38223]
[1759221465722,0.46979101,113600.0,113590.0,0.38263]
[1759221466124,0.44879101,113600.0,113590.0,0.38263]
[1759221466419,0.44879101,113600.0,113590.0,0.02183]
[1759221466618,1.29917152,113610.0,113600.0,0.1230378]
[1759221466619,0.02246,113610.0,113600.0,0.1230378]
[1759221466823,0.86132405,113610.0,113600.0,0.81018791]
[1759221467321,0.11128128,113610.0,113600.0,0.81018791]
[1759221467522,0.93016128,113610.0,113600.0,0.81018791]
[1759221467720,0.91037723,113610.0,113600.0,0.81018791]
[1759221467911,0.91037723,113610.0,113600.0,0.81418791]
[1759221468319,0.99834373,113610.0,113600.0,0.81018791]
[1759221468526,1.01034373,113610.0,113600.0,0.81118791]
[1759221469624,0.19146373,113610.0,113600.0,0.81118791]
[1759221469828,0.92213723,113610.0,113600.0,0.81118791]
[1759221470822,1.01010383,113610.0,113600.0,0.81118791]
[1759221471327,1.02988068,113610.0,113600.0,0.81118791]
[1759221475734,1.02912068,113610.0,113600.0,0.81118791]
[1759221476633,0.21124068,113610.0,113600.0,0.81118791]
[1759221476834,1.02848068,113610.0,113600.0,0.81118791]
[1759221477331,1.02848068,113610.0,113600.0,0.81126536]
[1759221478432,0.21124068,113610.0,113600.0,0.81126536]
[1759221478733,1.02832068,113610.0,113600.0,0.81126536]
[1759221479233,0.21124068,113610.0,113600.0,0.81126536]
[1759221479435,1.02832068,113610.0,113600.0,0.81126536]
[1759221480235,0.12327408,113610.0,113600.0,0.81126536]
[1759221480426,0.94023408,113610.0,113600.0,0.81126536]
[1759221480734,1.02820068,113610.0,113600.0,0.81126536]
[1759221481326,1.00842383,113610.0,113600.0,0.81126536]
[1759221481522,1.00842383,113610.0,113600.0,0.39687]
[1759221481523,1.34800139,113610.0,113600.0,0.39687]
[1759221481726,1.34800139,113610.0,113600.0,0.02243]